[Event "Titled Tuesday Blitz December 27 Late 2022"]
[White "Moreno Perez, Tobias Sebastian"]
[Black "Kaganskiy, Gleb"]
[WhiteFideId "186716"]
[BlackFideId "4132025"]
[WhiteElo "2256"]
[BlackElo "2205"]
[Result "0-1"]
[Round "07"]
[TimeControl "180+2"]
[Date "2022.12.27"]
[WhiteClock "0:00:02"]
[BlackClock "0:01:09"]

1. d4 {[%clk 0:03:00]}  d6 {[%clk 0:02:58]} 2. Nf3 {[%clk 0:03:00]}  Nf6 {[%clk 0:02:57]} 3. Bg5 {[%clk 0:03:00]}  Nbd7 {[%clk 0:02:56]} 4. Nbd2 {[%clk 0:02:59]}  h6 {[%clk 0:02:55]} 5. Bh4 {[%clk 0:02:59]}  g5 {[%clk 0:02:50]} 6. Bg3 {[%clk 0:02:59]}  Nh5 {[%clk 0:02:48]} 7. e4 {[%clk 0:02:57]}  Nxg3 {[%clk 0:02:47]} 8. hxg3 {[%clk 0:02:57]}  Bg7 {[%clk 0:02:45]} 9. c3 {[%clk 0:02:57]}  c5 {[%clk 0:02:44]} 10. dxc5 {[%clk 0:02:57]}  Nxc5 {[%clk 0:02:43]} 11. Bb5+ {[%clk 0:02:53]}  Bd7 {[%clk 0:02:42]} 12. Bxd7+ {[%clk 0:02:54]}  Qxd7 {[%clk 0:02:43]} 13. Qe2 {[%clk 0:02:53]}  Rc8 {[%clk 0:02:36]} 14. Kf1 {[%clk 0:02:43]}  a6 {[%clk 0:02:35]} 15. Nc4 {[%clk 0:02:39]}  Qb5 {[%clk 0:02:32]} 16. Nfd2 {[%clk 0:02:13]}  Kf8 {[%clk 0:02:20]} 17. Kg1 {[%clk 0:02:12]}  Na4 {[%clk 0:02:09]} 18. Qg4 {[%clk 0:02:10]}  Rxc4 {[%clk 0:02:02]} 19. Nxc4 {[%clk 0:02:10]}  Qxc4 {[%clk 0:02:02]} 20. Qd7 {[%clk 0:02:11]}  Bf6 {[%clk 0:01:54]} 21. Qxb7 {[%clk 0:01:55]}  Kg7 {[%clk 0:01:50]} 22. Kh2 {[%clk 0:01:54]}  h5 {[%clk 0:01:46]} 23. b3 {[%clk 0:01:52]}  Qxc3 {[%clk 0:01:45]} 24. bxa4 {[%clk 0:01:52]}  h4 {[%clk 0:01:45]} 25. Raf1 {[%clk 0:00:24]}  hxg3+ {[%clk 0:01:39]} 26. Kg1 {[%clk 0:00:25]}  gxf2+ {[%clk 0:01:35]} 27. Kxf2 {[%clk 0:00:23]}  Bd4+ {[%clk 0:01:31]} 28. Ke2 {[%clk 0:00:21]}  Qc2+ {[%clk 0:01:26]} 29. Kf3 {[%clk 0:00:21]}  Qd3+ {[%clk 0:01:23]} 30. Kg4 {[%clk 0:00:18]}  Qe2+ {[%clk 0:01:20]} 31. Rf3 {[%clk 0:00:09]}  Rxh1 {[%clk 0:01:16]} 32. Qxe7 {[%clk 0:00:08]}  Qxg2+ {[%clk 0:01:13]} 33. Rg3 {[%clk 0:00:08]}  Rh4+ {[%clk 0:01:11]} 34. Kf5 {[%clk 0:00:02]}  Rf4+ {[%clk 0:01:09]} 0-1


[Site "https://www.chess.com"]

[Event "Titled Tuesday Blitz December 27 Late 2022"]
[White "Movahed, Sina"]
[Black "Firouzja, Alireza"]
[WhiteFideId "42520835"]
[BlackFideId "12573981"]
[WhiteElo "2340"]
[BlackElo "2785"]
[Result "1-0"]
[Round "07"]
[TimeControl "180+2"]
[Date "2022.12.27"]
[WhiteClock "0:00:11"]
[BlackClock "0:00:01"]

1. Nf3 {[%clk 0:03:00]}  Nf6 {[%clk 0:02:59]} 2. c4 {[%clk 0:03:00]}  g6 {[%clk 0:03:00]} 3. g3 {[%clk 0:02:58]}  Bg7 {[%clk 0:03:00]} 4. Bg2 {[%clk 0:02:59]}  O-O {[%clk 0:03:01]} 5. O-O {[%clk 0:03:00]}  d6 {[%clk 0:03:01]} 6. d4 {[%clk 0:03:00]}  Nbd7 {[%clk 0:03:02]} 7. Nc3 {[%clk 0:03:01]}  e5 {[%clk 0:03:02]} 8. b3 {[%clk 0:02:59]}  Re8 {[%clk 0:03:01]} 9. e3 {[%clk 0:02:59]}  c6 {[%clk 0:03:01]} 10. Ba3 {[%clk 0:02:54]}  Qa5 {[%clk 0:02:59]} 11. Qc1 {[%clk 0:02:53]}  e4 {[%clk 0:02:59]} 12. Nd2 {[%clk 0:02:53]}  d5 {[%clk 0:02:59]} 13. Bd6 {[%clk 0:02:52]}  a6 {[%clk 0:02:54]} 14. Na4 {[%clk 0:02:35]}  Re6 {[%clk 0:02:47]} 15. Bf4 {[%clk 0:02:26]}  h6 {[%clk 0:02:46]} 16. cxd5 {[%clk 0:02:25]}  cxd5 {[%clk 0:02:43]} 17. Bc7 {[%clk 0:02:07]}  Qb4 {[%clk 0:02:42]} 18. Qb2 {[%clk 0:02:02]}  b5 {[%clk 0:02:40]} 19. Nc3 {[%clk 0:01:58]}  Bb7 {[%clk 0:02:40]} 20. a3 {[%clk 0:01:57]}  Qe7 {[%clk 0:02:40]} 21. Ba5 {[%clk 0:01:58]}  Nh7 {[%clk 0:02:36]} 22. a4 {[%clk 0:01:52]}  Bc6 {[%clk 0:02:32]} 23. axb5 {[%clk 0:01:49]}  axb5 {[%clk 0:02:32]} 24. Ne2 {[%clk 0:01:43]}  h5 {[%clk 0:02:17]} 25. Nf4 {[%clk 0:01:43]}  Rf6 {[%clk 0:02:18]} 26. Bc7 {[%clk 0:01:33]}  Rc8 {[%clk 0:02:16]} 27. Ra7 {[%clk 0:01:32]}  h4 {[%clk 0:02:13]} 28. Rc1 {[%clk 0:01:31]}  hxg3 {[%clk 0:02:13]} 29. hxg3 {[%clk 0:01:31]}  g5 {[%clk 0:02:08]} 30. Nh5 {[%clk 0:01:28]}  Rh6 {[%clk 0:02:08]} 31. Nxg7 {[%clk 0:01:28]}  Kxg7 {[%clk 0:02:08]} 32. Nxe4 {[%clk 0:01:21]}  g4 {[%clk 0:01:25]} 33. Be5+ {[%clk 0:01:04]}  f6 {[%clk 0:00:51]} 34. Bf4 {[%clk 0:01:04]}  Rh5 {[%clk 0:00:51]} 35. Nc5 {[%clk 0:01:02]}  Nhf8 {[%clk 0:00:51]} 36. Qe2 {[%clk 0:00:55]}  f5 {[%clk 0:00:49]} 37. e4 {[%clk 0:00:48]}  Kg8 {[%clk 0:00:38]} 38. Nxd7 {[%clk 0:00:42]}  Nxd7 {[%clk 0:00:37]} 39. e5 {[%clk 0:00:36]}  Qe6 {[%clk 0:00:35]} 40. Ra6 {[%clk 0:00:33]}  Nb8 {[%clk 0:00:25]} 41. Rb6 {[%clk 0:00:26]}  Nd7 {[%clk 0:00:26]} 42. Ra6 {[%clk 0:00:23]}  Nb8 {[%clk 0:00:26]} 43. Ra7 {[%clk 0:00:21]}  Nd7 {[%clk 0:00:20]} 44. Rc2 {[%clk 0:00:20]}  Nf8 {[%clk 0:00:17]} 45. Rc5 {[%clk 0:00:19]}  Ng6 {[%clk 0:00:15]} 46. Qd2 {[%clk 0:00:17]}  Nf8 {[%clk 0:00:08]} 47. Bg5 {[%clk 0:00:17]}  Nd7 {[%clk 0:00:06]} 48. Rc1 {[%clk 0:00:16]}  Kf7 {[%clk 0:00:06]} 49. Ra6 {[%clk 0:00:15]}  Kg6 {[%clk 0:00:06]} 50. Bh4 {[%clk 0:00:13]}  Nb8 {[%clk 0:00:05]} 51. Rb6 {[%clk 0:00:13]}  Nd7 {[%clk 0:00:05]} 52. Ra6 {[%clk 0:00:13]}  Nb8 {[%clk 0:00:06]} 53. Ra7 {[%clk 0:00:13]}  Nd7 {[%clk 0:00:06]} 54. b4 {[%clk 0:00:13]}  Rch8 {[%clk 0:00:02]} 55. Ra6 {[%clk 0:00:12]}  Nb8 {[%clk 0:00:03]} 56. Rb6 {[%clk 0:00:12]}  Rxh4 {[%clk 0:00:02]} 57. gxh4 {[%clk 0:00:12]}  Rxh4 {[%clk 0:00:02]} 58. Qf4 {[%clk 0:00:13]}  Qd7 {[%clk 0:00:01]} 59. e6 {[%clk 0:00:12]}  Qe7 {[%clk 0:00:01]} 60. Rxb8 {[%clk 0:00:11]} 1-0


[Site "https://www.chess.com"]

[Event "Titled Tuesday Blitz December 27 Late 2022"]
[White "Msellek, Ilyass"]
[Black "Rustemov, Alexander"]
[WhiteFideId "675938"]
[BlackFideId "4119002"]
[WhiteElo "2420"]
[BlackElo "2525"]
[Result "0-1"]
[Round "07"]
[TimeControl "180+2"]
[Date "2022.12.27"]
[WhiteClock "0:00:01"]
[BlackClock "0:01:11"]

1. e4 {[%clk 0:03:00]}  e6 {[%clk 0:03:00]} 2. d4 {[%clk 0:03:00]}  d5 {[%clk 0:03:00]} 3. Nc3 {[%clk 0:02:58]}  dxe4 {[%clk 0:03:01]} 4. Nxe4 {[%clk 0:02:57]}  Bd7 {[%clk 0:03:01]} 5. Nf3 {[%clk 0:02:55]}  Bc6 {[%clk 0:03:01]} 6. Neg5 {[%clk 0:02:55]}  Nd7 {[%clk 0:03:01]} 7. Nxf7 {[%clk 0:02:48]}  Kxf7 {[%clk 0:03:01]} 8. Ng5+ {[%clk 0:02:48]}  Ke8 {[%clk 0:02:59]} 9. Nxe6 {[%clk 0:01:51]}  Qe7 {[%clk 0:02:59]} 10. Qe2 {[%clk 0:01:49]}  Kf7 {[%clk 0:02:53]} 11. Ng5+ {[%clk 0:01:48]}  Ke8 {[%clk 0:02:45]} 12. Ne6 {[%clk 0:01:48]}  Kf7 {[%clk 0:02:44]} 13. Ng5+ {[%clk 0:01:48]}  Kg6 {[%clk 0:02:45]} 14. Be3 {[%clk 0:01:23]}  h6 {[%clk 0:02:36]} 15. Qd3+ {[%clk 0:01:23]}  Kf6 {[%clk 0:02:36]} 16. h4 {[%clk 0:01:17]}  Qb4+ {[%clk 0:02:29]} 17. c3 {[%clk 0:01:10]}  Qxb2 {[%clk 0:02:29]} 18. Rb1 {[%clk 0:01:10]}  Qxa2 {[%clk 0:02:23]} 19. Rh3 {[%clk 0:00:29]}  Ke7 {[%clk 0:01:56]} 20. Ne4 {[%clk 0:00:16]}  Ngf6 {[%clk 0:01:53]} 21. Nd2 {[%clk 0:00:15]}  Re8 {[%clk 0:01:47]} 22. Be2 {[%clk 0:00:14]}  Kd8 {[%clk 0:01:46]} 23. Qg6 {[%clk 0:00:07]}  Ne4 {[%clk 0:01:38]} 24. Bc4 {[%clk 0:00:05]}  Qc2 {[%clk 0:01:35]} 25. Rd1 {[%clk 0:00:03]}  Ndf6 {[%clk 0:01:29]} 26. Qf5 {[%clk 0:00:01]}  Bd7 {[%clk 0:01:26]} 27. Qg6 {[%clk 0:00:01]}  Bxh3 {[%clk 0:01:25]} 28. gxh3 {[%clk 0:00:01]}  Bd6 {[%clk 0:01:11]} 0-1


[Site "https://www.chess.com"]

[Event "Titled Tuesday Blitz December 27 Late 2022"]
[White "Mushini Ajay"]
[Black "Adewumi, Tanitoluwa"]
[WhiteFideId "35066188"]
[BlackFideId "30966396"]
[WhiteElo "2310"]
[BlackElo "2283"]
[Result "1-0"]
[Round "07"]
[TimeControl "180+2"]
[Date "2022.12.27"]
[WhiteClock "0:00:08"]
[BlackClock "0:00:10"]

1. e4 {[%clk 0:02:42]}  c5 {[%clk 0:02:59]} 2. Nf3 {[%clk 0:02:42]}  e6 {[%clk 0:02:59]} 3. d4 {[%clk 0:02:41]}  cxd4 {[%clk 0:03:00]} 4. Nxd4 {[%clk 0:02:40]}  Nc6 {[%clk 0:03:00]} 5. Nc3 {[%clk 0:02:40]}  Qc7 {[%clk 0:02:49]} 6. Be3 {[%clk 0:02:38]}  a6 {[%clk 0:02:48]} 7. Qf3 {[%clk 0:02:38]}  Bd6 {[%clk 0:02:42]} 8. O-O-O {[%clk 0:02:37]}  Be5 {[%clk 0:02:42]} 9. Kb1 {[%clk 0:02:34]}  Nge7 {[%clk 0:02:40]} 10. Qg4 {[%clk 0:02:32]}  h5 {[%clk 0:02:32]} 11. Qe2 {[%clk 0:02:28]}  b5 {[%clk 0:02:28]} 12. f4 {[%clk 0:02:14]}  Bxd4 {[%clk 0:02:17]} 13. Bxd4 {[%clk 0:02:13]}  Nxd4 {[%clk 0:02:18]} 14. Rxd4 {[%clk 0:02:13]}  Qxf4 {[%clk 0:02:17]} 15. g3 {[%clk 0:02:07]}  Qe5 {[%clk 0:02:15]} 16. Qf2 {[%clk 0:02:01]}  Bb7 {[%clk 0:02:06]} 17. Bg2 {[%clk 0:02:00]}  O-O-O {[%clk 0:01:53]} 18. a4 {[%clk 0:01:59]}  Nc6 {[%clk 0:00:53]} 19. Rd3 {[%clk 0:01:19]}  b4 {[%clk 0:00:52]} 20. Ne2 {[%clk 0:01:14]}  Kb8 {[%clk 0:00:44]} 21. Rhd1 {[%clk 0:01:11]}  Kc7 {[%clk 0:00:39]} 22. Qxf7 {[%clk 0:01:08]}  Bc8 {[%clk 0:00:37]} 23. Nd4 {[%clk 0:00:45]}  Rhf8 {[%clk 0:00:34]} 24. Nxc6 {[%clk 0:00:41]}  Kxc6 {[%clk 0:00:33]} 25. Qe7 {[%clk 0:00:39]}  Rfe8 {[%clk 0:00:23]} 26. Qxb4 {[%clk 0:00:37]}  d6 {[%clk 0:00:22]} 27. Rxd6+ {[%clk 0:00:27]}  Rxd6 {[%clk 0:00:22]} 28. Rxd6+ {[%clk 0:00:26]}  Qxd6 {[%clk 0:00:20]} 29. e5+ {[%clk 0:00:26]}  Qd5 {[%clk 0:00:20]} 30. Qd6+ {[%clk 0:00:21]}  Kb7 {[%clk 0:00:19]} 31. Bxd5+ {[%clk 0:00:21]}  exd5 {[%clk 0:00:20]} 32. Qxd5+ {[%clk 0:00:20]}  Kc7 {[%clk 0:00:18]} 33. Qf7+ {[%clk 0:00:19]}  Bd7 {[%clk 0:00:15]} 34. Qxg7 {[%clk 0:00:18]}  Re6 {[%clk 0:00:15]} 35. b3 {[%clk 0:00:17]}  a5 {[%clk 0:00:15]} 36. Kb2 {[%clk 0:00:16]}  Kc6 {[%clk 0:00:15]} 37. g4 {[%clk 0:00:16]}  hxg4 {[%clk 0:00:15]} 38. Qxg4 {[%clk 0:00:17]}  Rxe5 {[%clk 0:00:15]} 39. Qc4+ {[%clk 0:00:13]}  Kd6 {[%clk 0:00:15]} 40. h4 {[%clk 0:00:11]}  Rh5 {[%clk 0:00:15]} 41. Qf4+ {[%clk 0:00:10]}  Re5 {[%clk 0:00:14]} 42. h5 {[%clk 0:00:09]}  Be6 {[%clk 0:00:15]} 43. h6 {[%clk 0:00:09]}  Bf5 {[%clk 0:00:15]} 44. Qg5 {[%clk 0:00:07]}  Be4 {[%clk 0:00:13]} 45. Qf6+ {[%clk 0:00:07]}  Re6 {[%clk 0:00:13]} 46. Qg7 {[%clk 0:00:08]}  Re7 {[%clk 0:00:13]} 47. Qg3+ {[%clk 0:00:08]}  Kc6 {[%clk 0:00:13]} 48. Qc3+ {[%clk 0:00:09]}  Kb6 {[%clk 0:00:12]} 49. b4 {[%clk 0:00:09]}  Kb7 {[%clk 0:00:11]} 50. bxa5 {[%clk 0:00:09]}  Re6 {[%clk 0:00:11]} 51. Qb3+ {[%clk 0:00:08]}  Rb6 {[%clk 0:00:10]} 52. Qxb6+ {[%clk 0:00:08]} 1-0


[Site "https://www.chess.com"]

[Event "Titled Tuesday Blitz December 27 Late 2022"]
[White "Novikova, Galina"]
[Black "Finkelstein, Alan"]
[WhiteFideId "4157095"]
[BlackFideId "30950961"]
[WhiteElo "2073"]
[BlackElo "2152"]
[Result "0-1"]
[Round "07"]
[TimeControl "180+2"]
[Date "2022.12.27"]
[WhiteClock "0:00:15"]
[BlackClock "0:00:03"]

1. e4 {[%clk 0:03:00]}  c5 {[%clk 0:02:59]} 2. Nf3 {[%clk 0:03:01]}  e6 {[%clk 0:02:59]} 3. b4 {[%clk 0:03:00]}  cxb4 {[%clk 0:02:59]} 4. a3 {[%clk 0:03:01]}  bxa3 {[%clk 0:02:56]} 5. Nxa3 {[%clk 0:03:02]}  Nc6 {[%clk 0:02:53]} 6. c3 {[%clk 0:03:01]}  d5 {[%clk 0:02:48]} 7. e5 {[%clk 0:03:01]}  Bd7 {[%clk 0:02:41]} 8. d4 {[%clk 0:03:01]}  a6 {[%clk 0:02:38]} 9. Bd3 {[%clk 0:03:01]}  Nge7 {[%clk 0:02:27]} 10. O-O {[%clk 0:03:01]}  Na5 {[%clk 0:02:22]} 11. Nd2 {[%clk 0:02:55]}  Nec6 {[%clk 0:02:19]} 12. f4 {[%clk 0:02:54]}  g6 {[%clk 0:02:16]} 13. Nf3 {[%clk 0:02:49]}  b5 {[%clk 0:02:10]} 14. Kh1 {[%clk 0:02:44]}  Be7 {[%clk 0:01:49]} 15. Nc2 {[%clk 0:02:44]}  Nc4 {[%clk 0:01:45]} 16. Ne3 {[%clk 0:02:32]}  a5 {[%clk 0:01:19]} 17. Ng4 {[%clk 0:02:30]}  a4 {[%clk 0:01:03]} 18. Nf6+ {[%clk 0:02:29]}  Bxf6 {[%clk 0:00:59]} 19. exf6 {[%clk 0:02:30]}  N6a5 {[%clk 0:00:46]} 20. Ne5 {[%clk 0:02:25]}  Nb3 {[%clk 0:00:42]} 21. Nxd7 {[%clk 0:01:37]}  Kxd7 {[%clk 0:00:42]} 22. Bxc4 {[%clk 0:01:25]}  bxc4 {[%clk 0:00:41]} 23. Ba3 {[%clk 0:01:14]}  Qxf6 {[%clk 0:00:40]} 24. Ra2 {[%clk 0:01:07]}  Qf5 {[%clk 0:00:36]} 25. Rf3 {[%clk 0:00:44]}  Rhb8 {[%clk 0:00:21]} 26. Re2 {[%clk 0:00:41]}  Na1 {[%clk 0:00:07]} 27. h3 {[%clk 0:00:38]}  Rb1 {[%clk 0:00:07]} 28. Bc1 {[%clk 0:00:39]}  Nb3 {[%clk 0:00:07]} 29. Rc2 {[%clk 0:00:38]}  a3 {[%clk 0:00:07]} 30. Rff2 {[%clk 0:00:31]}  a2 {[%clk 0:00:06]} 31. Kh2 {[%clk 0:00:23]}  a1=Q {[%clk 0:00:05]} 32. Qf3 {[%clk 0:00:16]}  Rxc1 {[%clk 0:00:05]} 33. Rce2 {[%clk 0:00:16]}  Rh1+ {[%clk 0:00:05]} 34. Kg3 {[%clk 0:00:16]}  h5 {[%clk 0:00:04]} 35. Re5 {[%clk 0:00:16]}  Qd3 {[%clk 0:00:03]} 36. Rxd5+ {[%clk 0:00:15]}  exd5 {[%clk 0:00:03]} 0-1


[Site "https://www.chess.com"]

[Event "Titled Tuesday Blitz December 27 Late 2022"]
[White "Omariev, Maksim"]
[Black "Moskvin, Anatoly"]
[WhiteFideId "4193423"]
[BlackFideId "24199990"]
[WhiteElo "2304"]
[BlackElo "2189"]
[Result "0-1"]
[Round "07"]
[TimeControl "180+2"]
[Date "2022.12.27"]
[WhiteClock "0:00:07"]
[BlackClock "0:00:10"]

1. e4 {[%clk 0:03:00]}  e5 {[%clk 0:03:00]} 2. Nf3 {[%clk 0:03:00]}  d5 {[%clk 0:03:01]} 3. d4 {[%clk 0:02:57]}  dxe4 {[%clk 0:03:01]} 4. Nxe5 {[%clk 0:02:58]}  Bd6 {[%clk 0:03:01]} 5. Nc4 {[%clk 0:02:57]}  Nc6 {[%clk 0:03:01]} 6. Nxd6+ {[%clk 0:02:54]}  Qxd6 {[%clk 0:03:02]} 7. c3 {[%clk 0:02:53]}  Nf6 {[%clk 0:02:56]} 8. Be2 {[%clk 0:02:53]}  O-O {[%clk 0:02:56]} 9. Na3 {[%clk 0:02:53]}  Nd5 {[%clk 0:02:41]} 10. O-O {[%clk 0:02:37]}  Qg6 {[%clk 0:02:41]} 11. Kh1 {[%clk 0:02:33]}  Nce7 {[%clk 0:02:14]} 12. c4 {[%clk 0:02:31]}  Nf6 {[%clk 0:02:15]} 13. Nb5 {[%clk 0:02:22]}  c6 {[%clk 0:02:11]} 14. Nd6 {[%clk 0:02:21]}  Rd8 {[%clk 0:02:01]} 15. Bf4 {[%clk 0:01:34]}  b6 {[%clk 0:01:42]} 16. Rc1 {[%clk 0:00:52]}  c5 {[%clk 0:01:17]} 17. d5 {[%clk 0:00:44]}  Ba6 {[%clk 0:00:59]} 18. Rc3 {[%clk 0:00:42]}  Nf5 {[%clk 0:00:47]} 19. Nxf5 {[%clk 0:00:39]}  Qxf5 {[%clk 0:00:48]} 20. Qd2 {[%clk 0:00:27]}  Nxd5 {[%clk 0:00:43]} 21. Bg5 {[%clk 0:00:09]}  e3 {[%clk 0:00:21]} 22. fxe3 {[%clk 0:00:03]}  Qxg5 {[%clk 0:00:20]} 23. cxd5 {[%clk 0:00:03]}  Rxd5 {[%clk 0:00:19]} 24. Qe1 {[%clk 0:00:02]}  Bxe2 {[%clk 0:00:19]} 25. Qxe2 {[%clk 0:00:03]}  Rad8 {[%clk 0:00:19]} 26. e4 {[%clk 0:00:03]}  Rd2 {[%clk 0:00:19]} 27. Qf3 {[%clk 0:00:03]}  Qg6 {[%clk 0:00:16]} 28. Rb3 {[%clk 0:00:03]}  Re8 {[%clk 0:00:13]} 29. h3 {[%clk 0:00:02]}  h6 {[%clk 0:00:12]} 30. Rd3 {[%clk 0:00:03]}  Rxd3 {[%clk 0:00:06]} 31. Qxd3 {[%clk 0:00:03]}  Qxe4 {[%clk 0:00:06]} 32. Qd7 {[%clk 0:00:04]}  h5 {[%clk 0:00:06]} 33. Qxa7 {[%clk 0:00:04]}  Qe6 {[%clk 0:00:05]} 34. Qb7 {[%clk 0:00:03]}  Rd8 {[%clk 0:00:04]} 35. a3 {[%clk 0:00:02]}  Rd2 {[%clk 0:00:05]} 36. a4 {[%clk 0:00:02]}  h4 {[%clk 0:00:05]} 37. a5 {[%clk 0:00:02]}  bxa5 {[%clk 0:00:06]} 38. Qf3 {[%clk 0:00:02]}  Rxb2 {[%clk 0:00:06]} 39. Qa8+ {[%clk 0:00:03]}  Kh7 {[%clk 0:00:06]} 40. Qxa5 {[%clk 0:00:04]}  c4 {[%clk 0:00:06]} 41. Qa8 {[%clk 0:00:04]}  g6 {[%clk 0:00:05]} 42. Qf3 {[%clk 0:00:04]}  Kg8 {[%clk 0:00:04]} 43. Qa8+ {[%clk 0:00:04]}  Kg7 {[%clk 0:00:04]} 44. Qf3 {[%clk 0:00:04]}  Rb3 {[%clk 0:00:05]} 45. Qf4 {[%clk 0:00:04]}  Rd3 {[%clk 0:00:05]} 46. Qxh4 {[%clk 0:00:04]}  c3 {[%clk 0:00:06]} 47. Qb4 {[%clk 0:00:03]}  c2 {[%clk 0:00:06]} 48. Qb2+ {[%clk 0:00:02]}  Kh7 {[%clk 0:00:06]} 49. Qxc2 {[%clk 0:00:03]}  Re3 {[%clk 0:00:07]} 50. Qf2 {[%clk 0:00:03]}  Re2 {[%clk 0:00:07]} 51. Qxf7+ {[%clk 0:00:03]}  Qxf7 {[%clk 0:00:07]} 52. Rxf7+ {[%clk 0:00:04]}  Kh6 {[%clk 0:00:08]} 53. Rf3 {[%clk 0:00:04]}  Kh5 {[%clk 0:00:09]} 54. Kh2 {[%clk 0:00:05]}  Kg5 {[%clk 0:00:09]} 55. Kg3 {[%clk 0:00:06]}  Rc2 {[%clk 0:00:09]} 56. Rb3 {[%clk 0:00:06]}  Rb2 {[%clk 0:00:10]} 57. Rb5+ {[%clk 0:00:07]}  Rxb5 {[%clk 0:00:10]} 0-1


[Site "https://www.chess.com"]

[Event "Titled Tuesday Blitz December 27 Late 2022"]
[White "Oro, Faustino"]
[Black "Torres Dominguez, David"]
[WhiteFideId "20000197"]
[BlackFideId "2220857"]
[WhiteElo "2269"]
[BlackElo "1994"]
[Result "1-0"]
[Round "07"]
[TimeControl "180+2"]
[Date "2022.12.27"]
[WhiteClock "0:00:06"]
[BlackClock "0:00:05"]

1. e4 {[%clk 0:03:00]}  Nc6 {[%clk 0:02:58]} 2. Nf3 {[%clk 0:02:58]}  e5 {[%clk 0:02:57]} 3. Bc4 {[%clk 0:02:55]}  Bc5 {[%clk 0:02:57]} 4. c3 {[%clk 0:02:53]}  Nf6 {[%clk 0:02:54]} 5. d3 {[%clk 0:02:53]}  d6 {[%clk 0:02:53]} 6. O-O {[%clk 0:02:52]}  a6 {[%clk 0:02:44]} 7. a4 {[%clk 0:02:51]}  Ba7 {[%clk 0:02:38]} 8. Re1 {[%clk 0:02:46]}  h6 {[%clk 0:02:30]} 9. Nbd2 {[%clk 0:02:44]}  g5 {[%clk 0:02:28]} 10. Nf1 {[%clk 0:02:28]}  g4 {[%clk 0:02:25]} 11. N3d2 {[%clk 0:02:20]}  h5 {[%clk 0:02:25]} 12. Ne3 {[%clk 0:02:06]}  Bxe3 {[%clk 0:02:23]} 13. Rxe3 {[%clk 0:02:06]}  h4 {[%clk 0:02:20]} 14. Nf1 {[%clk 0:02:03]}  Nh5 {[%clk 0:02:11]} 15. d4 {[%clk 0:01:51]}  Qf6 {[%clk 0:02:08]} 16. d5 {[%clk 0:01:29]}  Ne7 {[%clk 0:02:04]} 17. Qe1 {[%clk 0:01:24]}  Ng6 {[%clk 0:01:57]} 18. f3 {[%clk 0:01:03]}  Ngf4 {[%clk 0:01:50]} 19. fxg4 {[%clk 0:00:57]}  Bxg4 {[%clk 0:01:45]} 20. Qf2 {[%clk 0:00:50]}  Rg8 {[%clk 0:01:37]} 21. Kh1 {[%clk 0:00:40]}  Bd7 {[%clk 0:01:32]} 22. g3 {[%clk 0:00:32]}  hxg3 {[%clk 0:01:28]} 23. hxg3 {[%clk 0:00:24]}  Qh6 {[%clk 0:01:21]} 24. Nh2 {[%clk 0:00:23]}  Nh3 {[%clk 0:01:03]} 25. Qe1 {[%clk 0:00:19]}  Qg6 {[%clk 0:00:58]} 26. Kg2 {[%clk 0:00:09]}  Ng5 {[%clk 0:00:35]} 27. Rd3 {[%clk 0:00:07]}  Qxe4+ {[%clk 0:00:29]} 28. Qxe4 {[%clk 0:00:07]}  Nxe4 {[%clk 0:00:25]} 29. g4 {[%clk 0:00:04]}  Bxg4 {[%clk 0:00:23]} 30. Nxg4 {[%clk 0:00:04]}  Rxg4+ {[%clk 0:00:23]} 31. Kf3 {[%clk 0:00:05]}  f5 {[%clk 0:00:22]} 32. Ke2 {[%clk 0:00:04]}  Nhg3+ {[%clk 0:00:20]} 33. Kf3 {[%clk 0:00:02]}  Nh1 {[%clk 0:00:15]} 34. Be3 {[%clk 0:00:02]}  Rg3+ {[%clk 0:00:14]} 35. Ke2 {[%clk 0:00:02]}  Rg2+ {[%clk 0:00:11]} 36. Kf3 {[%clk 0:00:03]}  Rg3+ {[%clk 0:00:11]} 37. Ke2 {[%clk 0:00:02]}  Rh3 {[%clk 0:00:11]} 38. Rg1 {[%clk 0:00:02]}  O-O-O {[%clk 0:00:10]} 39. Kd1 {[%clk 0:00:02]}  Rdh8 {[%clk 0:00:10]} 40. Kc2 {[%clk 0:00:03]}  Nhg3 {[%clk 0:00:10]} 41. Bc1 {[%clk 0:00:02]}  Rh2+ {[%clk 0:00:10]} 42. Kb1 {[%clk 0:00:02]}  Rh1 {[%clk 0:00:10]} 43. Rgd1 {[%clk 0:00:02]}  R8h3 {[%clk 0:00:10]} 44. R3d2 {[%clk 0:00:02]}  Rxd1 {[%clk 0:00:11]} 45. Rxd1 {[%clk 0:00:02]}  Rh2 {[%clk 0:00:10]} 46. Rg1 {[%clk 0:00:03]}  Ne2 {[%clk 0:00:10]} 47. Rg8+ {[%clk 0:00:02]}  Kd7 {[%clk 0:00:09]} 48. Rg7+ {[%clk 0:00:03]}  Kd8 {[%clk 0:00:08]} 49. Bg5+ {[%clk 0:00:04]}  Ke8 {[%clk 0:00:07]} 50. Rg8+ {[%clk 0:00:03]}  Kf7 {[%clk 0:00:07]} 51. Rc8 {[%clk 0:00:04]}  Nxg5 {[%clk 0:00:07]} 52. Rxc7+ {[%clk 0:00:05]}  Kf6 {[%clk 0:00:07]} 53. Rxb7 {[%clk 0:00:05]}  Rh1+ {[%clk 0:00:06]} 54. Ka2 {[%clk 0:00:05]}  Nf4 {[%clk 0:00:07]} 55. Rb6 {[%clk 0:00:05]}  Ne4 {[%clk 0:00:06]} 56. Rxa6 {[%clk 0:00:04]}  Rh2 {[%clk 0:00:05]} 57. Rb6 {[%clk 0:00:04]}  Nxc3+ {[%clk 0:00:04]} 58. Kb3 {[%clk 0:00:04]}  Ne4 {[%clk 0:00:04]} 59. a5 {[%clk 0:00:04]}  Nc5+ {[%clk 0:00:05]} 60. Ka3 {[%clk 0:00:05]}  Ke7 {[%clk 0:00:05]} 61. a6 {[%clk 0:00:05]}  Nxa6 {[%clk 0:00:05]} 62. Bxa6 {[%clk 0:00:05]}  Rh3+ {[%clk 0:00:05]} 63. b3 {[%clk 0:00:05]}  Nxd5 {[%clk 0:00:06]} 64. Rb7+ {[%clk 0:00:06]}  Ke6 {[%clk 0:00:05]} 65. Bc4 {[%clk 0:00:06]} 1-0


[Site "https://www.chess.com"]